fUSD/lending_fUSD_20240517
["ID","MTS","AMOUNT","RATE_DAILY","PERIOD"]
[327309620,1715979048109,-500.0,0.00019178,2]
[327309621,1715979048118,-500.0,0.00019178,2]
[327309622,1715979048127,-500.0,0.00019178,2]
[327309623,1715979048136,-500.0,0.00019178,2]
[327309624,1715979048145,-500.0,0.00019178,2]
[327309625,1715979048153,-500.0,0.00019178,2]
[327309626,1715979048162,-500.0,0.00019178,2]
[327309627,1715979048171,-500.0,0.00019178,2]
[327309628,1715979048181,-500.0,0.00019178,2]
[327309629,1715979048190,-500.0,0.00019178,2]
[327309630,1715979048199,-500.0,0.00019178,2]
[327309631,1715979048208,-500.0,0.00019178,2]
[327309632,1715979048218,-500.0,0.00019178,2]
[327309633,1715979048231,-500.0,0.00019178,2]
[327309634,1715979048241,-500.0,0.00019178,2]
[327309635,1715979048251,-500.0,0.00019178,2]
[327309636,1715979048260,-500.0,0.00019178,2]
[327309637,1715979048270,-500.0,0.00019178,2]
[327309638,1715979048279,-500.0,0.00019178,2]
[327309639,1715979048288,-500.0,0.00019178,2]
[327309640,1715979048299,-500.0,0.00019178,2]
[327309641,1715979048309,-500.0,0.00019178,2]
[327309642,1715979048318,-500.0,0.00019178,2]
[327309643,1715979048328,-500.0,0.00019178,2]
[327309644,1715979048338,-500.0,0.00019178,2]
[327309645,1715979048347,-500.0,0.00019178,2]
[327309646,1715979048356,-500.0,0.00019178,2]
[327309647,1715979048365,-719.42850913,0.00019178,2]
[327309648,1715979048375,-500.0,0.00019178,2]
[327309649,1715979048384,-500.0,0.00019178,2]
[327309650,1715979048394,-719.42850913,0.00019178,2]
[327309651,1715979048404,-500.0,0.00019178,2]
[327309652,1715979048413,-466.55548035,0.00019178,2]
[327309653,1715979048422,-305.57378385,0.00019178,2]
[327309654,1715979048432,-382.01402115,0.00019178,2]
[327309655,1715979048442,-500.0,0.00019178,2]
[327309656,1715979048451,-719.42850913,0.00019178,2]
[327309657,1715979048460,-500.0,0.00019178,2]
[327309658,1715979048470,-500.0,0.00019178,2]
[327309659,1715979048479,-719.42850913,0.00019178,2]
[327309660,1715979048489,-500.0,0.00019178,2]
[327309661,1715979048498,-500.0,0.00019178,2]
[327309662,1715979048511,-500.0,0.00019178,2]
[327309663,1715979048521,-719.42850913,0.00019178,2]
[327309664,1715979048530,-500.0,0.00019178,2]
[327309665,1715979048540,-512.51362466,0.00019178,2]
[327309666,1715979048551,-719.42850913,0.00019178,2]
[327309667,1715979048561,-500.0,0.00019178,2]
[327309668,1715979048571,-500.0,0.00019178,2]
[327309669,1715979048580,-500.0,0.00019178,2]
[327309670,1715979048592,-719.42850913,0.00019178,2]
[327309671,1715979048602,-327.3271426,0.00019178,2]
[327309672,1715979048611,-500.0,0.00019178,2]
[327309673,1715979048621,-719.42850913,0.00019178,2]
[327309674,1715979048630,-500.0,0.00019178,2]
[327309675,1715979048639,-500.0,0.00019178,2]
[327309676,1715979048649,-500.0,0.00019178,2]
[327309677,1715979048659,-719.42850913,0.00019178,2]
[327309678,1715979048668,-500.0,0.00019178,2]
[327309679,1715979048678,-500.0,0.00019178,2]
[327309680,1715979048687,-500.0,0.00019178,2]
[327309681,1715979048697,-719.42850913,0.00019178,2]
[327309682,1715979048707,-500.0,0.00019178,2]
[327309683,1715979048716,-719.42850913,0.00019178,2]
[327309684,1715979048726,-500.0,0.00019178,2]
[327309685,1715979048736,-719.42850913,0.00019178,2]
[327309686,1715979048745,-500.0,0.00019178,2]
[327309687,1715979048754,-719.42850913,0.00019178,2]
[327309688,1715979048764,-500.0,0.00019178,2]
[327309689,1715979048774,-719.42850913,0.00019178,2]
[327309690,1715979048783,-500.0,0.00019178,2]
[327309691,1715979048793,-719.42850913,0.00019178,2]
[327309692,1715979048803,-719.42850913,0.00019178,2]
[327309693,1715979048812,-719.42850913,0.00019178,2]
[327309694,1715979048822,-719.42850913,0.00019178,2]
[327309695,1715979048834,-719.42850913,0.00019178,2]
[327309696,1715979048844,-719.42850913,0.00019178,2]
[327309697,1715979048855,-719.42850913,0.00019178,2]
[327309698,1715979048865,-719.42850913,0.00019178,2]
[327309699,1715979048874,-719.42850913,0.00019178,2]
[327309700,1715979048884,-719.42850913,0.00019178,2]
[327309701,1715979048893,-719.42850913,0.00019178,2]
[327309702,1715979048903,-719.42850913,0.00019178,2]
[327309703,1715979048912,-719.42850913,0.00019178,2]
[327309704,1715979048922,-719.42850913,0.00019178,2]
[327309705,1715979048931,-719.42850913,0.00019178,2]
[327309706,1715979048940,-719.42850913,0.00019178,2]
[327309707,1715979048950,-719.42850913,0.00019178,2]
[327309708,1715979048959,-719.42850913,0.00019178,2]
[327309709,1715979048968,-719.42850913,0.00019178,2]
[327309710,1715979048978,-719.42850913,0.00019178,2]
[327309711,1715979048998,-719.42850913,0.00019178,2]
[327309712,1715979049021,-719.42850913,0.00019178,2]
[327309713,1715979049043,-719.42850913,0.00019178,2]
[327309714,1715979049063,-719.42850913,0.00019178,2]
[327309715,1715979049085,-719.42850913,0.00019178,2]
[327309716,1715979049106,-719.42850913,0.00019178,2]
[327309717,1715979049129,-719.42850913,0.00019178,2]
[327309718,1715979049151,-719.42850913,0.00019178,2]
[327309719,1715979049174,-719.42850913,0.00019178,2]
[327309720,1715979049195,-719.42850913,0.00019178,2]
[327309721,1715979049205,-719.42850913,0.00019178,2]
[327309722,1715979049215,-719.42850913,0.00019178,2]
[327309723,1715979049224,-719.42850913,0.00019178,2]
[327309724,1715979049233,-719.42850913,0.00019178,2]
[327309725,1715979049242,-719.42850913,0.00019178,2]
[327309726,1715979049251,-719.42850913,0.00019178,2]
[327309727,1715979049260,-719.42850913,0.00019178,2]
[327309728,1715979049269,-719.42850913,0.00019178,2]
[327309729,1715979049279,-719.42850913,0.00019178,2]
[327309730,1715979049287,-719.42850913,0.00019178,2]
[327309731,1715979049297,-500.0,0.00019178,2]
[327309732,1715979049307,-500.0,0.00019178,2]
[327309733,1715979049316,-500.0,0.00019178,2]
[327309734,1715979049325,-500.0,0.00019178,2]
[327309735,1715979049335,-500.0,0.00019178,2]
[327309736,1715979049345,-500.0,0.00019178,2]
[327309737,1715979049354,-500.0,0.00019178,2]
[327309738,1715979049363,-500.0,0.00019178,2]
[327309739,1715979049373,-500.0,0.00019178,2]
[327309740,1715979049382,-500.0,0.00019178,2]
[327309741,1715979049392,-500.0,0.00019178,2]
[327309742,1715979049402,-500.0,0.00019178,2]
[327309743,1715979049412,-500.0,0.00019178,2]
[327309744,1715979049421,-500.0,0.00019178,2]
[327309745,1715979049430,-400.0,0.00019178,2]
[327309746,1715979049439,-500.0,0.00019178,2]
[327309747,1715979049449,-500.0,0.00019178,2]
[327309748,1715979049458,-500.0,0.00019178,2]
[327309749,1715979049468,-702.98442891,0.00019178,2]
[327309750,1715979049477,-702.98442891,0.00019178,2]
[327309751,1715979049486,-702.98442891,0.00019178,2]
[327309752,1715979049496,-702.98442891,0.00019178,2]
[327309753,1715979049506,-702.98442891,0.00019178,2]
[327309754,1715979049518,-702.98442891,0.00019178,2]
[327309755,1715979049528,-702.98442891,0.00019178,2]
[327309756,1715979049537,-702.98442891,0.00019178,2]
[327309757,1715979049547,-702.98442891,0.00019178,2]
[327309758,1715979049557,-702.98442891,0.00019178,2]
[327309759,1715979049566,-702.98442891,0.00019178,2]
[327309760,1715979049576,-702.98442891,0.00019178,2]
[327309761,1715979049587,-702.98442891,0.00019178,2]
[327309762,1715979049597,-702.98442891,0.00019178,2]
[327309763,1715979049606,-702.98442891,0.00019178,2]
[327309764,1715979049616,-702.98442891,0.00019178,2]
[327309765,1715979049625,-702.98442891,0.00019178,2]
[327309766,1715979049634,-702.98442891,0.00019178,2]
[327309767,1715979049795,-702.98442891,0.00019178,2]
[327309768,1715979049804,-702.98442891,0.00019178,2]
[327309769,1715979049814,-702.98442891,0.00019178,2]
[327309770,1715979049823,-702.98442891,0.00019178,2]
[327309771,1715979049832,-702.98442891,0.00019178,2]
[327309772,1715979049841,-702.98442891,0.00019178,2]
[327309773,1715979049850,-707.24494061,0.00019178,2]
[327309774,1715979049859,-707.24494061,0.00019178,2]
[327309775,1715979049868,-707.24494061,0.00019178,2]
[327309776,1715979049878,-707.24494061,0.00019178,2]
[327309777,1715979049887,-707.24494061,0.00019178,2]
[327309778,1715979049897,-707.24494061,0.00019178,2]
[327309779,1715979049906,-707.24494061,0.00019178,2]
[327309780,1715979049915,-707.24494061,0.00019178,2]
[327309781,1715979049924,-707.24494061,0.00019178,2]
[327309782,1715979049933,-707.24494061,0.00019178,2]
[327309783,1715979049942,-707.24494061,0.00019178,2]
[327309784,1715979049951,-200.0,0.00019178,2]
[327309785,1715979049960,-200.0,0.00019178,2]
[327309786,1715979049969,-200.0,0.00019178,2]
[327309787,1715979049978,-200.0,0.00019178,2]
[327309788,1715979049988,-200.0,0.00019178,2]
[327309789,1715979049997,-200.0,0.00019178,2]
[327309790,1715979050006,-173.0,0.00019178,2]
[327309791,1715979050016,-55000.0,0.00019178,2]
[327309792,1715979050025,-3131.59,0.00019178,2]
[327309793,1715979050035,-10126.6,0.00019178,2]
[327309794,1715979050044,-200.0,0.00019178,7]
[327309795,1715979050053,-2603.99957143,0.00019179,2]
[327309796,1715979050062,-13402.07915297,0.000192,2]
[327309797,1715979050072,-2438.05,0.000192,2]
[327309798,1715979050081,-2154.5,0.000192,2]
[327309799,1715979050090,-2035.02,0.000192,2]
[327309800,1715979050099,-7748.85226468,0.000192,2]
[327309801,1715979050109,-171.55391824,0.00019222,2]
[327309802,1715979050118,-2228.25,0.00019227,7]
[327309803,1715979050127,-2228.25,0.00019227,7]
[327309804,1715979050136,-2228.25,0.00019227,7]
[327309805,1715979050145,-2228.25,0.00019227,7]
[327309806,1715979050155,-154.75954022,0.00019231,2]
[327309807,1715979050164,-156.49084933,0.00019239,2]
[327309808,1715979050173,-156.49084933,0.00019241,2]
[327309809,1715979050182,-171.55391824,0.00019244,2]
[327309810,1715979050192,-158.96537893,0.00019296,2]
[327309811,1715979050202,-152.84858728,0.00019326,2]
[327309812,1715979050211,-729.18623904,0.00019332,2]
[327309813,1715979050220,-1203.3,0.00019347,15]
[327309814,1715979050229,-6935.58672782,0.0001935,2]
[327309815,1715979050238,-194.16765628,0.00019374,2]
[327309816,1715979050247,-150.63567191,0.00019395,2]
[327309817,1715979050256,-152.99399679,0.00019397,2]
[327309818,1715979050265,-150.0,0.000194,2]
[327309819,1715979050274,-159.96588011,0.00019419,2]
[327309820,1715979050283,-150.25232363,0.00019426,2]
[327309821,1715979050293,-171.55391824,0.0001944,2]
[327309822,1715979050303,-299.35911654,0.00019445,2]
[327309823,1715979050313,-1292.0803424,0.00019461,2]
[327309824,1715979050324,-2228.25,0.000195,7]
[327309825,1715979050333,-2228.25,0.000195,7]
[327309826,1715979050343,-1087.39377194,0.000195,2]
[327309827,1715979050353,-150.0,0.000195,2]
[327309828,1715979050364,-180.10595824,0.0001957,2]
[327309829,1715979050374,-872.30466489,0.0001957,2]
[327309830,1715979050384,-2392.27246774,0.0001957,2]
[327309831,1715979050394,-129407.35200093,0.0001957,2]
[327309832,1715979050404,-3603.74683577,0.0001957,2]
[327309833,1715979050415,-155.0,0.0001957,2]
[327309834,1715979050426,-30457.29768867,0.0001957,2]
[327309835,1715979050436,-500.0,0.0001957,2]
[327309836,1715979050447,-150.5,0.0001957,15]
[327309837,1715979050457,-150.5,0.0001957,15]
[327309838,1715979050466,-2370.0,0.0001957,15]
[327309839,1715979050476,-150.5,0.0001957,15]
[327309840,1715979050486,-177.0,0.0001957,15]
[327309841,1715979050495,-150.5,0.0001957,15]
[327309842,1715979050505,-244.0,0.0001957,15]
[327309843,1715979050518,-1963.0,0.0001957,15]
[327309844,1715979050529,-356.842198,0.0001957,2]
[327309845,1715979050538,-356.842198,0.0001957,2]
[327309846,1715979050548,-151.0,0.0001957,2]
[327309847,1715979050558,-151.0,0.0001957,2]
[327309848,1715979050567,-151.0,0.0001957,2]
[327309849,1715979050576,-233.454521,0.0001957,2]
[327309850,1715979050586,-233.454521,0.0001957,2]
[327309851,1715979050597,-151.0,0.0001957,2]
[327309852,1715979050608,-1803.527728,0.00019575,2]
[327309853,1715979050618,-152.14,0.0001958,15]
[327309854,1715979050627,-150.5,0.0001958,15]
[327309855,1715979050638,-154.15,0.0001958,15]
[327309856,1715979050648,-152.61,0.0001958,15]
[327309857,1715979050657,-222.0,0.0001958,15]
[327309858,1715979050667,-150.5,0.0001958,15]
[327309859,1715979050676,-2370.0,0.0001958,15]
[327309860,1715979050686,-150.5,0.0001958,15]
[327309861,1715979050696,-177.0,0.0001958,15]
[327309862,1715979050706,-150.5,0.0001958,15]
[327309863,1715979050717,-244.0,0.0001958,15]
[327309864,1715979050727,-1963.0,0.0001958,15]
[327309865,1715979050736,-154.03,0.0001958,15]
[327309866,1715979050746,-151.0,0.0001958,2]
[327309867,1715979050755,-482.399709,0.0001958,2]
[327309868,1715979050766,-482.399709,0.0001958,2]
[327309869,1715979050775,-151.0,0.0001958,2]
[327309870,1715979050786,-151.0,0.0001958,2]
[327309871,1715979050796,-151.0,0.0001958,2]
[327309872,1715979050805,-150.5,0.0001959,15]
[327309873,1715979050815,-150.5,0.0001959,15]
[327309874,1715979050824,-150.5,0.0001959,15]
[327309875,1715979050834,-150.5,0.0001959,15]
[327309876,1715979050843,-150.5,0.0001959,15]
[327309877,1715979050853,-150.5,0.0001959,15]
[327309878,1715979050863,-2370.0,0.0001959,15]
[327309879,1715979050872,-150.5,0.0001959,15]
[327309880,1715979050882,-177.0,0.0001959,15]
[327309881,1715979050893,-150.5,0.0001959,15]
[327309882,1715979050902,-244.0,0.0001959,15]
[327309883,1715979050913,-1963.0,0.0001959,15]
[327309884,1715979050922,-150.5,0.0001959,15]
[327309885,1715979050932,-155.56019282,0.00019593,2]
[327309886,1715979050943,-317.94,0.000196,2]
[327309887,1715979050953,-157.71739218,0.00019621,2]
[327309888,1715979050964,-1004.96,0.0001963,2]
[327309889,1715979050973,-729.18623904,0.0001968,2]
[327309890,1715979050983,-150.25232363,0.00019707,2]
[327309891,1715979050993,-729.18623904,0.00019748,2]
[327309892,1715979051003,-171.55391824,0.0001975,2]
[327309893,1715979051014,-700.0,0.0001977,2]
[327309894,1715979051023,-2228.25,0.00019773,7]
[327309895,1715979051032,-2228.25,0.00019773,7]
[327309896,1715979051041,-150.25232363,0.00019785,2]
[327309897,1715979051052,-500.0,0.0001979,2]
[327309898,1715979051061,-500.0,0.0001979,2]
[327309899,1715979051070,-729.18623904,0.00019891,2]
[327309900,1715979051079,-4567.53301201,0.000199,3]
[327309901,1715979051089,-151.0,0.000199,2]
[327309902,1715979051098,-151.0,0.000199,2]
[327309903,1715979051107,-423.003046,0.000199,2]
[327309904,1715979051117,-423.003046,0.000199,2]
[327309905,1715979051125,-151.0,0.000199,2]
[327309906,1715979051135,-151.0,0.000199,2]
[327309907,1715979051144,-151.0,0.000199,2]
[327309908,1715979051153,-575.928155,0.000199,2]
[327309909,1715979051162,-575.928155,0.000199,2]
[327309910,1715979051172,-186.807051,0.000199,2]
[327309911,1715979051181,-186.807051,0.000199,2]
[327309912,1715979051190,-151.0,0.000199,2]
[327309913,1715979051199,-151.0,0.000199,2]
[327309914,1715979051209,-151.0,0.000199,2]
[327309915,1715979051218,-151.0,0.000199,2]
[327309916,1715979051228,-151.0,0.000199,2]
[327309917,1715979051237,-151.0,0.000199,2]
[327309918,1715979051247,-151.0,0.000199,2]
[327309919,1715979051256,-317.92,0.000199,2]
[327309920,1715979051266,-317.92,0.000199,2]
[327309921,1715979051275,-151.0,0.000199,2]
[327309922,1715979051285,-157.698281,0.000199,2]
[327309923,1715979051295,-157.698281,0.000199,2]
[327309924,1715979051304,-151.0,0.000199,2]
[327309925,1715979051314,-151.0,0.000199,2]
[327309926,1715979051323,-151.0,0.000199,2]
[327309927,1715979051332,-151.0,0.000199,2]
[327309928,1715979051342,-151.0,0.000199,2]
[327309929,1715979051352,-224.379286,0.000199,2]
[327309930,1715979051362,-151.0,0.000199,2]
[327309931,1715979051371,-151.0,0.000199,2]
[327309932,1715979051381,-236.48222182,0.000199,2]
[327309933,1715979051390,-151.0,0.000199,2]
[327309934,1715979051400,-151.0,0.000199,2]
[327309935,1715979051410,-151.0,0.000199,2]
[327309936,1715979051420,-151.0,0.000199,2]
[327309937,1715979051429,-151.0,0.000199,2]
[327309938,1715979051438,-151.0,0.000199,2]
[327309939,1715979051448,-151.0,0.000199,2]
[327309940,1715979051457,-225.015646,0.000199,2]
[327309941,1715979051467,-225.015646,0.000199,2]
[327309942,1715979051476,-151.0,0.000199,2]
[327309943,1715979051485,-151.0,0.000199,2]
[327309944,1715979051496,-279.779586,0.000199,2]
[327309945,1715979051507,-151.0,0.000199,2]
[327309946,1715979051519,-151.0,0.000199,2]
[327309947,1715979051529,-151.0,0.000199,2]
[327309948,1715979051538,-151.0,0.000199,2]
[327309949,1715979051548,-6179.65,0.000199,2]
[327309950,1715979051557,-6179.65,0.000199,2]
[327309951,1715979051567,-6179.65,0.000199,2]
[327309952,1715979051576,-6179.65,0.000199,2]
[327309953,1715979051585,-6179.65,0.000199,2]
[327309954,1715979051597,-6179.65,0.000199,2]
[327309955,1715979051607,-6179.65,0.000199,2]
[327309956,1715979051616,-1699.46008651,0.000199,2]
[327309957,1715979051785,-606.73196114,0.000199,2]
[327309958,1715979051796,-1599.77159946,0.000199,2]
[327309959,1715979051808,-2273.68635289,0.000199,2]
[327309960,1715979051818,-2688.83416065,0.000199,2]
[327309961,1715979051830,-509.6353171,0.000199,2]
[327309962,1715979051842,-2981.18052225,0.000199,2]
[327309963,1715979051851,-6179.65,0.000199,2]
[327309964,1715979051861,-6179.65,0.000199,2]
[327309965,1715979051871,-5212.97463775,0.000199,2]
[327309966,1715979051882,-443.56428124,0.000199,2]
[327309967,1715979051898,-523.11108101,0.000199,2]
[327309968,1715979051907,-2536.188919,0.000199,2]
[327309969,1715979051919,-3209.94494954,0.000199,2]
[327309970,1715979051935,-433.51613146,0.000199,2]
[327309971,1715979051944,-6179.65,0.000199,2]
[327309972,1715979051954,-6179.65,0.000199,2]
[327309973,1715979051963,-6179.65,0.000199,2]
[327309974,1715979051973,-6179.65,0.000199,2]
[327309975,1715979051982,-6179.65,0.000199,2]
[327309976,1715979051992,-6179.65,0.000199,2]
[327309977,1715979052001,-6179.65,0.000199,2]
[327309978,1715979052011,-151.0,0.000199,2]
[327309979,1715979052020,-1640.864301,0.000199,2]
[327309980,1715979052030,-1640.864301,0.000199,2]
[327309981,1715979052039,-151.0,0.000199,2]
[327309982,1715979052049,-151.0,0.000199,2]
[327309983,1715979052059,-151.0,0.000199,2]
[327309984,1715979052069,-151.0,0.000199,2]
[327309985,1715979052078,-151.0,0.000199,2]
[327309986,1715979052087,-151.0,0.000199,2]
[327309987,1715979052097,-151.0,0.000199,2]
[327309988,1715979052142,-151.0,0.000199,2]
[327309989,1715979052152,-151.0,0.000199,2]
[327309990,1715979052162,-151.0,0.000199,2]
[327309991,1715979052171,-151.0,0.000199,2]
[327309992,1715979052180,-151.0,0.000199,2]
[327309993,1715979052190,-151.0,0.000199,2]
[327309994,1715979052199,-151.0,0.000199,2]
[327309995,1715979052209,-151.0,0.000199,2]
[327309996,1715979052218,-187.09372,0.000199,2]
[327309997,1715979052228,-150.0,0.000199,2]
[327309998,1715979052238,-151.0,0.000199,2]
[327309999,1715979052247,-151.0,0.000199,2]
[327310000,1715979052257,-151.0,0.000199,2]
[327310001,1715979052266,-151.0,0.000199,2]
[327310002,1715979052276,-151.0,0.000199,2]
[327310003,1715979052286,-151.0,0.000199,2]
[327310004,1715979052295,-151.0,0.000199,2]
[327310005,1715979052305,-153.90576894,0.00019935,2]
[327310006,1715979052315,-163.92345761,0.00019937,2]
[327310007,1715979052324,-154.75954022,0.00019958,2]
[327310008,1715979052334,-700.0,0.0001997,2]
[327310009,1715979052343,-700.0,0.0001997,2]
[327310010,1715979052353,-700.0,0.0001997,2]
[327310011,1715979052362,-700.0,0.0001997,2]
[327310012,1715979052371,-500.0,0.0001997,2]
[327310013,1715979052380,-500.0,0.0001997,2]
[327310014,1715979052390,-500.0,0.0001997,2]
[327310015,1715979052399,-500.0,0.0001997,2]
[327310016,1715979052409,-500.0,0.0001997,2]
[327310017,1715979052418,-154.75954022,0.00019971,2]
[327310018,1715979052429,-150.63567191,0.00019975,2]
[327310019,1715979052438,-2422.649526,0.0002,2]
[327310020,1715979052447,-1445.43474444,0.0002,2]
[327310021,1715979052457,-169.71660916,0.0002,2]
[327310022,1715979052466,-2977.36942553,0.0002,2]
[327310023,1715979052475,-158.00167468,0.0002,2]
[327310024,1715979052485,-155.0,0.0002,2]
[327310025,1715979052495,-155.0,0.0002,2]
[327310026,1715979052504,-444.94127906,0.0002,2]
[327310027,1715979052519,-155.0,0.0002,2]
[327310028,1715979052528,-17906.45248902,0.0002,2]
[327310029,1715979052538,-21544.83290916,0.0002,2]
[327310030,1715979052547,-676.87822684,0.0002,2]
[327310031,1715979052558,-352.69918482,0.0002,2]
[327310032,1715979052567,-3401.81326346,0.0002,2]
[327310033,1715979052576,-200.0,0.0002,2]
[327310034,1715979052586,-461.62549074,0.0002,2]
[327310035,1715979052595,-40000.0,0.0002,5]
[327310036,1715979052606,-2000.0,0.0002,15]
[327310037,1715979052615,-155.0,0.0002,2]
[327310038,1715979052624,-664.0,0.0002,7]
[327310039,1715979052633,-971.0,0.0002,2]
[327310040,1715979052642,-576.0,0.0002,2]
[327310041,1715979052651,-187264.41841602,0.0002,4]
[327310042,1715979052665,-32542.82611893,0.0002,4]
[327310043,1715979052676,-1803.0,0.0002,4]
[327310044,1715979052687,-775.896,0.0002,4]
[327310045,1715979052698,-21596.40641486,0.0002,4]
[327310046,1715979052709,-4572.78453988,0.0002,4]
[327310047,1715979052778,-151.0,0.000199,2]
[327310048,1715979052787,-2107.12544579,0.0002,4]
[327310049,1715979052799,-328.7241325,0.0002,4]
[327310050,1715979052810,-586.80049511,0.0002,4]
[327310051,1715979052822,-409.45999997,0.0002,4]
[327310052,1715979052834,-619.435,0.0002,4]
[327310053,1715979052847,-337.67116403,0.0002,4]
[327310054,1715979052858,-5895.21044934,0.0002,4]
[327310055,1715979052869,-775.77409809,0.0002,4]
[327310056,1715979052880,-526.50281417,0.0002,4]
[327310057,1715979052893,-873.88005092,0.0002,4]
[327310058,1715979052904,-500.09,0.0002,4]
[327310059,1715979052915,-1022.04087,0.0002,4]
[327310060,1715979052927,-1112.92577071,0.0002,4]
[327310061,1715979052939,-1013.22885838,0.0002,4]
[327310062,1715979052950,-4608.4,0.0002,4]
[327310063,1715979052961,-883.11236747,0.0002,4]
[327310064,1715979052972,-114072.4823442,0.0002,4]
[327310065,1715979052982,-740.56162969,0.0002,2]
[327310066,1715979052992,-2467.5307655,0.0002,2]
[327310067,1715979053002,-1401.0,0.0002,2]
[327310068,1715979053012,-151.576739,0.0002,2]
[327310069,1715979053021,-160.0,0.0002,2]
[327310070,1715979053031,-151.0,0.0002,2]
[327310071,1715979053041,-151.0,0.0002,2]
[327310072,1715979053051,-189.0,0.0002,2]
[327310073,1715979053061,-151.0,0.0002,2]
[327310074,1715979053070,-150.0,0.0002,2]
[327310075,1715979053080,-150.0,0.0002,2]
[327310076,1715979053090,-200.0,0.00020002,2]
[327310077,1715979053100,-541.48648052,0.00020005,2]
[327310078,1715979053111,-729.18623904,0.0002001,2]
[327310079,1715979053121,-150.25232363,0.0002001,2]
[327310080,1715979053132,-1292.0803424,0.00020013,2]
[327310081,1715979053141,-2228.25,0.00020046,7]
[327310082,1715979053151,-2228.25,0.00020046,7]
[327310083,1715979053160,-154.75954022,0.00020066,2]
[327310084,1715979053170,-6321.4189528,0.00020072,2]
[327310085,1715979053180,-25113.46799601,0.00020072,2]
[327310086,1715979053190,-7600.0,0.0002009,2]
[327310087,1715979053200,-541.48648052,0.00020109,2]
[327310088,1715979053209,-166.66666666,0.00020128,2]
[327310089,1715979053218,-154.51679898,0.00020181,2]
[327310090,1715979053227,-6051.24166909,0.00020192,2]
[327310091,1715979053237,-561.78122799,0.00020192,2]
[327310092,1715979053248,-157.33741901,0.00020229,2]
[327310093,1715979053258,-150.25232363,0.0002023,2]
[327310094,1715979053268,-1292.0803424,0.00020254,2]
[327310095,1715979053278,-162.0,0.00020283,2]
[327310096,1715979053287,-156.49084933,0.00020295,2]
[327310097,1715979053296,-2438.05,0.000203,2]
[327310098,1715979053306,-2154.5,0.000203,2]
[327310099,1715979053315,-2035.02,0.000203,2]
[327310100,1715979053324,-166.66666666,0.00020305,2]
[327310101,1715979053333,-299.35911654,0.00020311,2]
[327310102,1715979053343,-2228.25,0.00020319,7]
[327310103,1715979053352,-2228.25,0.00020319,7]
[327310104,1715979053361,-193.43539948,0.00020324,2]
[327310105,1715979053371,-8349.08323413,0.00020347,2]
[327310106,1715979053380,-154.75954022,0.00020385,2]
[327310107,1715979053390,-152.99399679,0.0002039,2]
[327310108,1715979053399,-150.0,0.000204,2]
[327310109,1715979053409,-356.842198,0.00020409,2]
[327310110,1715979053418,-356.842198,0.00020409,2]
[327310111,1715979053427,-151.0,0.00020409,2]
[327310112,1715979053437,-233.454521,0.00020409,2]
[327310113,1715979053446,-233.454521,0.00020409,2]
[327310114,1715979053455,-151.0,0.00020409,2]
[327310115,1715979053465,-158.96537893,0.00020451,2]
[327310116,1715979053474,-154.75954022,0.00020468,2]
[327310117,1715979053484,-156.49084933,0.00020476,2]
[327310118,1715979053493,-664.0,0.000205,8]
[327310119,1715979053503,-150.0,0.000205,2]